[Event "Titled Tuesday Blitz November 01 Early 2022"]
[White "Schekachikhin, Maksim"]
[Black "Warchol, Kamil"]
[WhiteFideId "24177830"]
[BlackFideId "21858241"]
[WhiteElo "2272"]
[BlackElo "2001"]
[Result "1-0"]
[Round "02"]
[TimeControl "180+1"]
[Date "2022.11.02"]
[WhiteClock "0:00:10"]
[BlackClock "0:00:02"]

1. d4 {[%clk 0:03:00]}  Nf6 {[%clk 0:02:59]} 2. c4 {[%clk 0:02:57]}  e6 {[%clk 0:02:58]} 3. Nc3 {[%clk 0:02:57]}  Bb4 {[%clk 0:02:54]} 4. Qc2 {[%clk 0:02:56]}  O-O {[%clk 0:02:45]} 5. Nf3 {[%clk 0:02:55]}  b6 {[%clk 0:02:38]} 6. e4 {[%clk 0:02:54]}  d5 {[%clk 0:02:36]} 7. e5 {[%clk 0:02:38]}  Ne4 {[%clk 0:02:35]} 8. Bd3 {[%clk 0:02:38]}  Bb7 {[%clk 0:02:33]} 9. O-O {[%clk 0:02:34]}  Bxc3 {[%clk 0:02:22]} 10. bxc3 {[%clk 0:02:35]}  c5 {[%clk 0:02:16]} 11. cxd5 {[%clk 0:02:12]}  exd5 {[%clk 0:02:12]} 12. Nd2 {[%clk 0:02:07]}  Nxd2 {[%clk 0:02:08]} 13. Bxd2 {[%clk 0:02:08]}  h6 {[%clk 0:02:05]} 14. f4 {[%clk 0:02:08]}  Nc6 {[%clk 0:01:53]} 15. dxc5 {[%clk 0:02:03]}  bxc5 {[%clk 0:01:51]} 16. Rae1 {[%clk 0:02:03]}  Re8 {[%clk 0:01:38]} 17. Qd1 {[%clk 0:02:03]}  c4 {[%clk 0:01:33]} 18. Bb1 {[%clk 0:02:01]}  d4 {[%clk 0:01:31]} 19. cxd4 {[%clk 0:01:57]}  Qxd4+ {[%clk 0:01:26]} 20. Be3 {[%clk 0:01:57]}  Qxd1 {[%clk 0:01:24]} 21. Rxd1 {[%clk 0:01:58]}  Red8 {[%clk 0:01:21]} 22. Kf2 {[%clk 0:01:55]}  Nb4 {[%clk 0:01:11]} 23. Bc5 {[%clk 0:01:42]}  Nd3+ {[%clk 0:01:07]} 24. Bxd3 {[%clk 0:01:42]}  cxd3 {[%clk 0:01:03]} 25. Bd6 {[%clk 0:01:40]}  Ba6 {[%clk 0:01:03]} 26. Ke3 {[%clk 0:01:39]}  Rdc8 {[%clk 0:01:03]} 27. Rf2 {[%clk 0:01:36]}  Rc3 {[%clk 0:00:55]} 28. Rdd2 {[%clk 0:01:34]}  Rac8 {[%clk 0:00:54]} 29. g4 {[%clk 0:01:33]}  Rc2 {[%clk 0:00:42]} 30. f5 {[%clk 0:01:33]}  R8c6 {[%clk 0:00:40]} 31. a3 {[%clk 0:01:30]}  f6 {[%clk 0:00:34]} 32. Kd4 {[%clk 0:01:28]}  fxe5+ {[%clk 0:00:33]} 33. Bxe5 {[%clk 0:01:27]}  Kf7 {[%clk 0:00:20]} 34. Ke3 {[%clk 0:01:22]}  Rc8 {[%clk 0:00:18]} 35. Bb2 {[%clk 0:01:04]}  Re8+ {[%clk 0:00:17]} 36. Kf4 {[%clk 0:01:03]}  Rec8 {[%clk 0:00:17]} 37. h4 {[%clk 0:01:02]}  R8c4+ {[%clk 0:00:15]} 38. Kg3 {[%clk 0:01:01]}  Rc5 {[%clk 0:00:12]} 39. Bd4 {[%clk 0:00:57]}  Rc7 {[%clk 0:00:11]} 40. g5 {[%clk 0:00:54]}  hxg5 {[%clk 0:00:10]} 41. hxg5 {[%clk 0:00:55]}  Rxd2 {[%clk 0:00:11]} 42. Rxd2 {[%clk 0:00:55]}  Rc2 {[%clk 0:00:11]} 43. g6+ {[%clk 0:00:55]}  Kf8 {[%clk 0:00:11]} 44. Rd1 {[%clk 0:00:50]}  d2 {[%clk 0:00:10]} 45. Be3 {[%clk 0:00:50]}  Bc8 {[%clk 0:00:10]} 46. Kf4 {[%clk 0:00:50]}  Rc4+ {[%clk 0:00:05]} 47. Ke5 {[%clk 0:00:48]}  Ra4 {[%clk 0:00:05]} 48. Rxd2 {[%clk 0:00:47]}  Ra5+ {[%clk 0:00:06]} 49. Kf4 {[%clk 0:00:32]}  Bxf5 {[%clk 0:00:06]} 50. Rd6 {[%clk 0:00:13]}  Ke7 {[%clk 0:00:04]} 51. Rc6 {[%clk 0:00:12]}  Rd5 {[%clk 0:00:04]} 52. Bxa7 {[%clk 0:00:12]}  Bd7 {[%clk 0:00:03]} 53. Ra6 {[%clk 0:00:10]}  Rd6 {[%clk 0:00:02]} 54. Bc5 {[%clk 0:00:10]} 1-0


[Site "https://www.chess.com"]

[Event "Titled Tuesday Blitz November 01 Early 2022"]
[White "Shapiro, Daniel"]
[Black "Fathy, Elameir"]
[WhiteFideId "2001780"]
[BlackFideId "10600396"]
[WhiteElo "2244"]
[BlackElo "2311"]
[Result "1-0"]
[Round "02"]
[TimeControl "180+1"]
[Date "2022.11.02"]
[WhiteClock "0:00:14"]
[BlackClock "0:00:01"]

1. d4 {[%clk 0:03:00]}  d5 {[%clk 0:02:59]} 2. c4 {[%clk 0:03:00]}  c6 {[%clk 0:02:57]} 3. Nf3 {[%clk 0:02:59]}  Nf6 {[%clk 0:02:53]} 4. Qb3 {[%clk 0:02:59]}  dxc4 {[%clk 0:02:52]} 5. Qxc4 {[%clk 0:02:58]}  g6 {[%clk 0:02:48]} 6. Bg5 {[%clk 0:02:57]}  Bg7 {[%clk 0:02:48]} 7. Nc3 {[%clk 0:02:46]}  O-O {[%clk 0:02:45]} 8. h3 {[%clk 0:02:43]}  b5 {[%clk 0:02:42]} 9. Qd3 {[%clk 0:02:41]}  Nbd7 {[%clk 0:02:18]} 10. e4 {[%clk 0:02:34]}  a6 {[%clk 0:02:11]} 11. Be2 {[%clk 0:02:19]}  c5 {[%clk 0:02:02]} 12. d5 {[%clk 0:02:13]}  c4 {[%clk 0:02:02]} 13. Qc2 {[%clk 0:02:10]}  Nc5 {[%clk 0:01:42]} 14. a3 {[%clk 0:01:52]}  h6 {[%clk 0:01:26]} 15. Be3 {[%clk 0:01:45]}  Nb3 {[%clk 0:01:00]} 16. Rd1 {[%clk 0:01:41]}  Nd7 {[%clk 0:00:47]} 17. Bf4 {[%clk 0:01:32]}  g5 {[%clk 0:00:34]} 18. Bg3 {[%clk 0:01:29]}  Qa5 {[%clk 0:00:30]} 19. e5 {[%clk 0:01:20]}  Nb6 {[%clk 0:00:29]} 20. O-O {[%clk 0:01:12]}  Bb7 {[%clk 0:00:24]} 21. d6 {[%clk 0:01:07]}  exd6 {[%clk 0:00:21]} 22. Rxd6 {[%clk 0:01:06]}  Nc8 {[%clk 0:00:07]} 23. Rdd1 {[%clk 0:00:50]}  Qb6 {[%clk 0:00:07]} 24. Ne4 {[%clk 0:00:44]}  Bxe4 {[%clk 0:00:04]} 25. Qxe4 {[%clk 0:00:43]}  Ra7 {[%clk 0:00:03]} 26. Rd5 {[%clk 0:00:39]}  Re8 {[%clk 0:00:03]} 27. Bd1 {[%clk 0:00:38]}  Nc5 {[%clk 0:00:03]} 28. Qe3 {[%clk 0:00:35]}  Rc7 {[%clk 0:00:04]} 29. Bc2 {[%clk 0:00:34]}  Nd7 {[%clk 0:00:03]} 30. Qe4 {[%clk 0:00:28]}  Qb7 {[%clk 0:00:03]} 31. Rfd1 {[%clk 0:00:26]}  Ndb6 {[%clk 0:00:03]} 32. Qh7+ {[%clk 0:00:25]}  Kf8 {[%clk 0:00:02]} 33. R5d4 {[%clk 0:00:20]}  Ne7 {[%clk 0:00:01]} 34. h4 {[%clk 0:00:20]}  gxh4 {[%clk 0:00:01]} 35. Nxh4 {[%clk 0:00:19]}  Ng8 {[%clk 0:00:02]} 36. Rf4 {[%clk 0:00:15]}  Rce7 {[%clk 0:00:01]} 37. Ng6# {[%clk 0:00:14]} 1-0


[Site "https://www.chess.com"]

[Event "Titled Tuesday Blitz November 01 Early 2022"]
[White "Sharapov, Evgeny"]
[Black "Boruchovsky, Avital"]
[WhiteFideId "14103133"]
[BlackFideId "2800055"]
[WhiteElo "2367"]
[BlackElo "2466"]
[Result "0-1"]
[Round "02"]
[TimeControl "180+1"]
[Date "2022.11.02"]
[WhiteClock "0:00:30"]
[BlackClock "0:00:14"]

1. e4 {[%clk 0:02:59]}  e5 {[%clk 0:02:57]} 2. Nf3 {[%clk 0:02:58]}  Nc6 {[%clk 0:02:57]} 3. Nc3 {[%clk 0:02:58]}  g6 {[%clk 0:02:57]} 4. d4 {[%clk 0:02:56]}  exd4 {[%clk 0:02:58]} 5. Nxd4 {[%clk 0:02:55]}  Bg7 {[%clk 0:02:58]} 6. Be3 {[%clk 0:02:55]}  Nf6 {[%clk 0:02:59]} 7. f3 {[%clk 0:02:55]}  O-O {[%clk 0:02:59]} 8. Qd2 {[%clk 0:02:55]}  d5 {[%clk 0:02:59]} 9. Nxc6 {[%clk 0:02:46]}  bxc6 {[%clk 0:03:00]} 10. O-O-O {[%clk 0:02:45]}  Re8 {[%clk 0:02:59]} 11. Bh6 {[%clk 0:02:37]}  Bh8 {[%clk 0:02:29]} 12. exd5 {[%clk 0:02:37]}  cxd5 {[%clk 0:02:29]} 13. Nxd5 {[%clk 0:02:37]}  Nxd5 {[%clk 0:02:21]} 14. Qxd5 {[%clk 0:02:36]}  Qf6 {[%clk 0:02:19]} 15. c3 {[%clk 0:02:18]}  Rb8 {[%clk 0:01:58]} 16. Bb5 {[%clk 0:02:11]}  Be6 {[%clk 0:01:50]} 17. Qc6 {[%clk 0:02:08]}  Qf5 {[%clk 0:01:34]} 18. Qxe8+ {[%clk 0:01:32]}  Rxe8 {[%clk 0:01:35]} 19. Bxe8 {[%clk 0:01:32]}  Bxa2 {[%clk 0:01:35]} 20. Rd8 {[%clk 0:01:32]}  Qb1+ {[%clk 0:01:22]} 21. Kd2 {[%clk 0:01:32]}  Qxb2+ {[%clk 0:01:23]} 22. Ke3 {[%clk 0:01:24]}  Qxc3+ {[%clk 0:01:21]} 23. Kf2 {[%clk 0:01:23]}  Bd4+ {[%clk 0:00:57]} 24. Kg3 {[%clk 0:01:18]}  Be5+ {[%clk 0:00:57]} 25. Kf2 {[%clk 0:01:12]}  Bd4+ {[%clk 0:00:50]} 26. Kg3 {[%clk 0:01:12]}  Bf6 {[%clk 0:00:41]} 27. Rb8 {[%clk 0:00:58]}  Qe5+ {[%clk 0:00:21]} 28. Bf4 {[%clk 0:00:53]}  Bh4+ {[%clk 0:00:20]} 29. Kxh4 {[%clk 0:00:38]}  Qxf4+ {[%clk 0:00:19]} 30. g4 {[%clk 0:00:38]}  Kg7 {[%clk 0:00:16]} 31. Bc6 {[%clk 0:00:30]}  Qf6+ {[%clk 0:00:14]} 0-1


[Site "https://www.chess.com"]

[Event "Titled Tuesday Blitz November 01 Early 2022"]
[White "Shubenkova, Veronika"]
[Black "Gabrielian, Artur"]
[WhiteFideId "44124040"]
[BlackFideId "4131002"]
[WhiteElo "2027"]
[BlackElo "2432"]
[Result "0-1"]
[Round "02"]
[TimeControl "180+1"]
[Date "2022.11.02"]
[WhiteClock "0:00:47"]
[BlackClock "0:01:04"]

1. e4 {[%clk 0:03:00]}  c5 {[%clk 0:02:58]} 2. Nc3 {[%clk 0:03:00]}  d6 {[%clk 0:02:58]} 3. g3 {[%clk 0:02:59]}  Nc6 {[%clk 0:02:58]} 4. Bg2 {[%clk 0:03:00]}  g6 {[%clk 0:02:58]} 5. f4 {[%clk 0:03:00]}  Bg7 {[%clk 0:02:59]} 6. Nf3 {[%clk 0:03:00]}  Nf6 {[%clk 0:02:58]} 7. d3 {[%clk 0:02:59]}  O-O {[%clk 0:02:59]} 8. Be3 {[%clk 0:02:59]}  Ng4 {[%clk 0:02:56]} 9. Bg1 {[%clk 0:02:59]}  Nd4 {[%clk 0:02:54]} 10. h3 {[%clk 0:02:54]}  Nxf3+ {[%clk 0:02:53]} 11. Qxf3 {[%clk 0:02:42]}  Nf6 {[%clk 0:02:53]} 12. Bf2 {[%clk 0:02:37]}  Rb8 {[%clk 0:02:51]} 13. O-O {[%clk 0:02:36]}  b5 {[%clk 0:02:51]} 14. Ne2 {[%clk 0:02:35]}  Nd7 {[%clk 0:02:51]} 15. Rab1 {[%clk 0:02:35]}  e6 {[%clk 0:02:50]} 16. d4 {[%clk 0:02:35]}  Bb7 {[%clk 0:02:48]} 17. Rfd1 {[%clk 0:02:32]}  Qc7 {[%clk 0:02:47]} 18. c3 {[%clk 0:02:23]}  Nf6 {[%clk 0:02:45]} 19. Qe3 {[%clk 0:02:21]}  Qc6 {[%clk 0:02:37]} 20. dxc5 {[%clk 0:02:13]}  dxc5 {[%clk 0:02:35]} 21. Qxc5 {[%clk 0:02:13]}  Nxe4 {[%clk 0:02:31]} 22. Qxc6 {[%clk 0:02:10]}  Bxc6 {[%clk 0:02:31]} 23. Bc5 {[%clk 0:02:10]}  Nxc5 {[%clk 0:02:26]} 24. Bxc6 {[%clk 0:02:10]}  Rfc8 {[%clk 0:02:26]} 25. Bf3 {[%clk 0:02:02]}  a5 {[%clk 0:02:08]} 26. Nd4 {[%clk 0:01:54]}  Rb6 {[%clk 0:02:08]} 27. Kf2 {[%clk 0:01:51]}  b4 {[%clk 0:02:06]} 28. Ke3 {[%clk 0:01:43]}  Na4 {[%clk 0:02:03]} 29. cxb4 {[%clk 0:01:41]}  Rxb4 {[%clk 0:01:59]} 30. Nc6 {[%clk 0:01:33]}  Rxc6 {[%clk 0:01:47]} 31. Rd8+ {[%clk 0:01:30]}  Bf8 {[%clk 0:01:47]} 32. Bxc6 {[%clk 0:01:31]}  Nxb2 {[%clk 0:01:47]} 33. Rc1 {[%clk 0:01:26]}  Kg7 {[%clk 0:01:46]} 34. Be8 {[%clk 0:01:24]}  Nc4+ {[%clk 0:01:45]} 35. Kf3 {[%clk 0:01:23]}  Be7 {[%clk 0:01:33]} 36. Rc8 {[%clk 0:01:21]}  Nd6 {[%clk 0:01:30]} 37. Ra8 {[%clk 0:01:21]}  Rd4 {[%clk 0:01:13]} 38. a4 {[%clk 0:01:13]}  Rd3+ {[%clk 0:01:12]} 39. Kg2 {[%clk 0:01:08]}  Nf5 {[%clk 0:01:12]} 40. g4 {[%clk 0:01:03]}  Nh4+ {[%clk 0:01:08]} 41. Kh2 {[%clk 0:01:02]}  Bd6 {[%clk 0:01:08]} 42. Rc4 {[%clk 0:00:47]}  g5 {[%clk 0:01:04]} 0-1


[Site "https://www.chess.com"]

[Event "Titled Tuesday Blitz November 01 Early 2022"]
[White "Storey, Charles H"]
[Black "Dimitrov, Atanas"]
[WhiteFideId "406686"]
[BlackFideId "2901315"]
[WhiteElo "2252"]
[BlackElo "2800"]
[Result "1-0"]
[Round "02"]
[TimeControl "180+1"]
[Date "2022.11.02"]
[WhiteClock "0:00:08"]
[BlackClock "0:00:02"]

1. e4 {[%clk 0:03:00]}  c5 {[%clk 0:02:59]} 2. Nf3 {[%clk 0:03:00]}  d6 {[%clk 0:03:00]} 3. d4 {[%clk 0:03:00]}  cxd4 {[%clk 0:03:01]} 4. Nxd4 {[%clk 0:03:00]}  Nf6 {[%clk 0:03:01]} 5. f3 {[%clk 0:03:00]}  e5 {[%clk 0:03:00]} 6. Nb3 {[%clk 0:03:00]}  Be7 {[%clk 0:03:00]} 7. c4 {[%clk 0:02:59]}  O-O {[%clk 0:03:00]} 8. Nc3 {[%clk 0:03:00]}  Be6 {[%clk 0:03:00]} 9. Be3 {[%clk 0:02:59]}  Nc6 {[%clk 0:02:58]} 10. Be2 {[%clk 0:02:56]}  a5 {[%clk 0:02:55]} 11. O-O {[%clk 0:02:46]}  a4 {[%clk 0:02:55]} 12. Nd2 {[%clk 0:02:42]}  a3 {[%clk 0:02:51]} 13. b3 {[%clk 0:02:41]}  Nd7 {[%clk 0:02:45]} 14. Nb5 {[%clk 0:02:40]}  Nc5 {[%clk 0:02:39]} 15. Nb1 {[%clk 0:02:38]}  Bg5 {[%clk 0:02:21]} 16. Qd2 {[%clk 0:02:29]}  Bxe3+ {[%clk 0:02:20]} 17. Qxe3 {[%clk 0:02:30]}  Qe7 {[%clk 0:02:02]} 18. N1xa3 {[%clk 0:02:28]}  Nd4 {[%clk 0:01:58]} 19. Rfc1 {[%clk 0:02:14]}  f5 {[%clk 0:01:51]} 20. b4 {[%clk 0:02:05]}  Nxb5 {[%clk 0:01:35]} 21. Nxb5 {[%clk 0:02:02]}  Na4 {[%clk 0:01:34]} 22. Nc3 {[%clk 0:01:33]}  Nxc3 {[%clk 0:01:23]} 23. Rxc3 {[%clk 0:01:31]}  fxe4 {[%clk 0:01:22]} 24. Qxe4 {[%clk 0:01:24]}  Rf4 {[%clk 0:01:20]} 25. Qc2 {[%clk 0:01:20]}  Bf5 {[%clk 0:01:07]} 26. Bd3 {[%clk 0:01:17]}  Bxd3 {[%clk 0:01:05]} 27. Qxd3 {[%clk 0:01:15]}  Rd4 {[%clk 0:01:05]} 28. Qe2 {[%clk 0:01:10]}  Qc7 {[%clk 0:00:59]} 29. Kh1 {[%clk 0:00:57]}  Qb6 {[%clk 0:00:56]} 30. b5 {[%clk 0:00:49]}  Qc5 {[%clk 0:00:50]} 31. a4 {[%clk 0:00:45]}  Qb4 {[%clk 0:00:50]} 32. Rca3 {[%clk 0:00:29]}  Rxc4 {[%clk 0:00:45]} 33. h3 {[%clk 0:00:28]}  Rac8 {[%clk 0:00:41]} 34. Qe3 {[%clk 0:00:22]}  Rd4 {[%clk 0:00:27]} 35. Qb3+ {[%clk 0:00:17]}  Rcc4 {[%clk 0:00:22]} 36. Qxb4 {[%clk 0:00:17]}  Rxb4 {[%clk 0:00:23]} 37. Kh2 {[%clk 0:00:15]}  Kf7 {[%clk 0:00:23]} 38. Rc1 {[%clk 0:00:14]}  Rd2 {[%clk 0:00:16]} 39. Rc7+ {[%clk 0:00:12]}  Kf6 {[%clk 0:00:16]} 40. Ra1 {[%clk 0:00:12]}  b6 {[%clk 0:00:15]} 41. Rc6 {[%clk 0:00:11]}  Rbb2 {[%clk 0:00:12]} 42. Rg1 {[%clk 0:00:11]}  Rb4 {[%clk 0:00:12]} 43. Rxb6 {[%clk 0:00:10]}  Rxa4 {[%clk 0:00:12]} 44. Rb8 {[%clk 0:00:10]}  Rb4 {[%clk 0:00:12]} 45. b6 {[%clk 0:00:11]}  Rdb2 {[%clk 0:00:12]} 46. Rf8+ {[%clk 0:00:10]}  Ke7 {[%clk 0:00:13]} 47. Rg8 {[%clk 0:00:11]}  Kf7 {[%clk 0:00:13]} 48. Rd8 {[%clk 0:00:11]}  Rxb6 {[%clk 0:00:13]} 49. Rc1 {[%clk 0:00:11]}  Rd2 {[%clk 0:00:12]} 50. Rc7+ {[%clk 0:00:11]}  Kg6 {[%clk 0:00:12]} 51. Rdd7 {[%clk 0:00:11]}  Kf5 {[%clk 0:00:11]} 52. Rxg7 {[%clk 0:00:12]}  h5 {[%clk 0:00:11]} 53. Rcf7+ {[%clk 0:00:12]}  Ke6 {[%clk 0:00:12]} 54. Re7+ {[%clk 0:00:12]}  Kd5 {[%clk 0:00:11]} 55. Rg5 {[%clk 0:00:13]}  h4 {[%clk 0:00:11]} 56. Rh7 {[%clk 0:00:13]}  Rb4 {[%clk 0:00:09]} 57. Rg4 {[%clk 0:00:12]}  Rdd4 {[%clk 0:00:07]} 58. Rhxh4 {[%clk 0:00:11]}  Rxg4 {[%clk 0:00:07]} 59. hxg4 {[%clk 0:00:12]}  Kc5 {[%clk 0:00:06]} 60. Rh8 {[%clk 0:00:12]}  Rb7 {[%clk 0:00:06]} 61. Rd8 {[%clk 0:00:12]}  d5 {[%clk 0:00:06]} 62. Kg3 {[%clk 0:00:12]}  Kd4 {[%clk 0:00:06]} 63. g5 {[%clk 0:00:13]}  Rf7 {[%clk 0:00:06]} 64. Kg4 {[%clk 0:00:12]}  Rf4+ {[%clk 0:00:06]} 65. Kh5 {[%clk 0:00:13]}  Rf5 {[%clk 0:00:05]} 66. Kg4 {[%clk 0:00:11]}  Rf4+ {[%clk 0:00:05]} 67. Kh5 {[%clk 0:00:11]}  Rf5 {[%clk 0:00:05]} 68. Kh6 {[%clk 0:00:12]}  e4 {[%clk 0:00:03]} 69. fxe4 {[%clk 0:00:10]}  Kxe4 {[%clk 0:00:04]} 70. g6 {[%clk 0:00:11]}  Rf2 {[%clk 0:00:04]} 71. g4 {[%clk 0:00:10]}  Rg2 {[%clk 0:00:04]} 72. Kg5 {[%clk 0:00:11]}  Kf3 {[%clk 0:00:04]} 73. Rxd5 {[%clk 0:00:08]}  Rxg4+ {[%clk 0:00:04]} 74. Kf6 {[%clk 0:00:09]}  Ke4 {[%clk 0:00:04]} 75. Rg5 {[%clk 0:00:08]}  Rf4+ {[%clk 0:00:04]} 76. Ke7 {[%clk 0:00:08]}  Rf1 {[%clk 0:00:02]} 77. g7 {[%clk 0:00:08]} 1-0


[Site "https://www.chess.com"]

[Event "Titled Tuesday Blitz November 01 Early 2022"]
[White "Stoyanov, Tsvetan"]
[Black "Tharushi, T H D Niklesha"]
[WhiteFideId "2917173"]
[BlackFideId "9918264"]
[WhiteElo "2349"]
[BlackElo "1596"]
[Result "1-0"]
[Round "02"]
[TimeControl "180+1"]
[Date "2022.11.02"]
[WhiteClock "0:01:17"]
[BlackClock "0:01:27"]

1. e4 {[%clk 0:03:00]}  c6 {[%clk 0:02:59]} 2. c4 {[%clk 0:03:00]}  d5 {[%clk 0:02:56]} 3. cxd5 {[%clk 0:03:01]}  cxd5 {[%clk 0:02:56]} 4. exd5 {[%clk 0:03:02]}  Nf6 {[%clk 0:02:56]} 5. Bb5+ {[%clk 0:03:02]}  Bd7 {[%clk 0:02:56]} 6. Bc4 {[%clk 0:03:02]}  a6 {[%clk 0:02:54]} 7. a4 {[%clk 0:02:56]}  Qc7 {[%clk 0:02:53]} 8. Qb3 {[%clk 0:02:49]}  g6 {[%clk 0:02:36]} 9. Nf3 {[%clk 0:02:47]}  Bg7 {[%clk 0:02:35]} 10. O-O {[%clk 0:02:40]}  O-O {[%clk 0:02:34]} 11. h3 {[%clk 0:02:38]}  Bf5 {[%clk 0:02:34]} 12. Nc3 {[%clk 0:02:34]}  Nbd7 {[%clk 0:02:33]} 13. d3 {[%clk 0:01:52]}  Nc5 {[%clk 0:02:28]} 14. Qd1 {[%clk 0:01:51]}  Rfd8 {[%clk 0:02:15]} 15. Re1 {[%clk 0:01:49]}  Nxd5 {[%clk 0:02:12]} 16. Nxd5 {[%clk 0:01:44]}  Rxd5 {[%clk 0:02:04]} 17. Bxd5 {[%clk 0:01:44]}  Nxd3 {[%clk 0:02:04]} 18. Re3 {[%clk 0:01:33]}  Rd8 {[%clk 0:01:53]} 19. Rxd3 {[%clk 0:01:32]}  Bxd3 {[%clk 0:01:52]} 20. Qxd3 {[%clk 0:01:33]}  e6 {[%clk 0:01:52]} 21. Qc4 {[%clk 0:01:25]}  Qxc4 {[%clk 0:01:45]} 22. Bxc4 {[%clk 0:01:25]}  Rd1+ {[%clk 0:01:44]} 23. Kh2 {[%clk 0:01:23]}  e5 {[%clk 0:01:39]} 24. Be2 {[%clk 0:01:22]}  Rd5 {[%clk 0:01:37]} 25. Be3 {[%clk 0:01:21]}  e4 {[%clk 0:01:37]} 26. Nd2 {[%clk 0:01:21]}  Bxb2 {[%clk 0:01:36]} 27. Rb1 {[%clk 0:01:21]}  Be5+ {[%clk 0:01:36]} 28. g3 {[%clk 0:01:21]}  f5 {[%clk 0:01:33]} 29. Bc4 {[%clk 0:01:20]}  Kg7 {[%clk 0:01:30]} 30. Rxb7+ {[%clk 0:01:19]}  Kf6 {[%clk 0:01:29]} 31. Bxd5 {[%clk 0:01:18]}  g5 {[%clk 0:01:28]} 32. Rf7+ {[%clk 0:01:18]}  Kg6 {[%clk 0:01:27]} 33. Kg2 {[%clk 0:01:17]} 1-0


[Site "https://www.chess.com"]

[Event "Titled Tuesday Blitz November 01 Early 2022"]
[White "Troltenier, Dirk"]
[Black "Martinez Molina, Carlos Alberto"]
[WhiteFideId "4606400"]
[BlackFideId "5122708"]
[WhiteElo "2335"]
[BlackElo "2212"]
[Result "1/2-1/2"]
[Round "02"]
[TimeControl "180+1"]
[Date "2022.11.02"]
[WhiteClock "0:00:06"]
[BlackClock "0:00:19"]

1. e4 {[%clk 0:03:00]}  c5 {[%clk 0:02:59]} 2. c3 {[%clk 0:03:00]}  Nf6 {[%clk 0:02:59]} 3. e5 {[%clk 0:03:00]}  Nd5 {[%clk 0:03:00]} 4. d4 {[%clk 0:03:00]}  cxd4 {[%clk 0:03:01]} 5. Nf3 {[%clk 0:03:00]}  e6 {[%clk 0:03:01]} 6. Bc4 {[%clk 0:03:00]}  d6 {[%clk 0:03:01]} 7. O-O {[%clk 0:02:59]}  Be7 {[%clk 0:03:00]} 8. exd6 {[%clk 0:02:59]}  Qxd6 {[%clk 0:03:01]} 9. cxd4 {[%clk 0:02:58]}  O-O {[%clk 0:03:01]} 10. Nc3 {[%clk 0:02:58]}  Nxc3 {[%clk 0:03:01]} 11. bxc3 {[%clk 0:02:58]}  b6 {[%clk 0:03:02]} 12. d5 {[%clk 0:02:32]}  e5 {[%clk 0:02:56]} 13. Bb3 {[%clk 0:02:25]}  Ba6 {[%clk 0:02:53]} 14. Re1 {[%clk 0:02:25]}  Nd7 {[%clk 0:02:54]} 15. c4 {[%clk 0:02:11]}  Rac8 {[%clk 0:02:54]} 16. Bb2 {[%clk 0:01:54]}  Bf6 {[%clk 0:02:48]} 17. Nd2 {[%clk 0:01:46]}  Rfe8 {[%clk 0:02:41]} 18. Rc1 {[%clk 0:01:34]}  Nc5 {[%clk 0:02:36]} 19. Ba3 {[%clk 0:01:34]}  Qd8 {[%clk 0:02:33]} 20. Ba4 {[%clk 0:01:20]}  Nd3 {[%clk 0:02:27]} 21. Bxe8 {[%clk 0:01:11]}  Qxe8 {[%clk 0:02:23]} 22. Ne4 {[%clk 0:01:03]}  Nxc1 {[%clk 0:02:14]} 23. Nd6 {[%clk 0:01:03]}  Qd7 {[%clk 0:02:14]} 24. Nxc8 {[%clk 0:01:03]}  Nxa2 {[%clk 0:01:53]} 25. Nd6 {[%clk 0:00:51]}  Nc3 {[%clk 0:01:53]} 26. Qb3 {[%clk 0:00:41]}  e4 {[%clk 0:01:26]} 27. Nxe4 {[%clk 0:00:37]}  Nxe4 {[%clk 0:01:27]} 28. Rxe4 {[%clk 0:00:37]}  g6 {[%clk 0:01:28]} 29. Qe3 {[%clk 0:00:33]}  h5 {[%clk 0:01:20]} 30. Bc1 {[%clk 0:00:27]}  Bg7 {[%clk 0:01:16]} 31. Re8+ {[%clk 0:00:24]}  Kh7 {[%clk 0:01:15]} 32. Re7 {[%clk 0:00:24]}  Qf5 {[%clk 0:01:11]} 33. Qe4 {[%clk 0:00:18]}  Qf6 {[%clk 0:01:04]} 34. Rxa7 {[%clk 0:00:14]}  Qc3 {[%clk 0:01:05]} 35. Qe3 {[%clk 0:00:09]}  Qxc4 {[%clk 0:00:59]} 36. h3 {[%clk 0:00:06]}  Bc8 {[%clk 0:00:52]} 37. Rxf7 {[%clk 0:00:06]}  Kg8 {[%clk 0:00:45]} 38. Qe8+ {[%clk 0:00:05]}  Kh7 {[%clk 0:00:45]} 39. Qe7 {[%clk 0:00:04]}  Qxc1+ {[%clk 0:00:41]} 40. Kh2 {[%clk 0:00:04]}  Qh6 {[%clk 0:00:42]} 41. Qc7 {[%clk 0:00:04]}  Bf5 {[%clk 0:00:39]} 42. d6 {[%clk 0:00:04]}  Kg8 {[%clk 0:00:39]} 43. d7 {[%clk 0:00:04]}  Bxd7 {[%clk 0:00:23]} 44. Qxd7 {[%clk 0:00:05]}  b5 {[%clk 0:00:19]} 45. Qe8+ {[%clk 0:00:04]}  Kh7 {[%clk 0:00:20]} 46. Rb7 {[%clk 0:00:05]}  Qf4+ {[%clk 0:00:19]} 47. Kh1 {[%clk 0:00:06]}  Qc1+ {[%clk 0:00:19]} 48. Kh2 {[%clk 0:00:06]}  Qf4+ {[%clk 0:00:20]} 49. Kg1 {[%clk 0:00:06]}  Qc1+ {[%clk 0:00:19]} 50. Kh2 {[%clk 0:00:06]}  Qf4+ {[%clk 0:00:19]} 1/2-1/2


[Site "https://www.chess.com"]